fUST/lending_fUST_20250820
["ID","MTS","AMOUNT","RATE_DAILY","PERIOD"]
[380327138,1755681039442,-523.07,0.00020273,2]
[380327139,1755681039451,-737.83,0.00020273,2]
[380327140,1755681039460,-480.0,0.00020273,2]
[380327141,1755681039469,-480.0,0.00020273,2]
[380327142,1755681039478,-480.0,0.00020273,2]
[380327143,1755681039488,-480.0,0.00020273,2]
[380327144,1755681039497,-157.0,0.000203,2]
[380327145,1755681039506,-160.0,0.0002045,2]
[380327146,1755681039516,-412.02676636,0.00020547,2]
[380327147,1755681039525,-845.84,0.00020547,2]
[380327148,1755681039534,-523.07,0.00020547,2]
[380327149,1755681039544,-737.83,0.00020547,2]
[380327150,1755681039553,-480.0,0.00020547,2]
[380327151,1755681039562,-480.0,0.00020547,2]
[380327152,1755681039571,-492.22485948,0.00020547,2]
[380327153,1755681039583,-480.0,0.00020547,2]
[380327154,1755681039594,-998.00057558,0.00020642,2]
[380327155,1755681039604,-1680.0,0.00020709,2]
[380327156,1755681039620,-3571.04,0.00020779,10]
[380327157,1755681039632,-420.0,0.00020788,2]
[380327158,1755681039645,-172.0,0.00020788,2]
[380327159,1755681039656,-1680.0,0.00020789,2]
[380327160,1755681039668,-845.84,0.00020821,2]
[380327161,1755681039678,-523.07,0.00020821,2]
[380327162,1755681039689,-737.83,0.00020821,2]
[380327163,1755681039699,-480.0,0.00020821,2]
[380327164,1755681039710,-480.0,0.00020821,2]
[380327165,1755681039719,-480.0,0.00020821,2]
[380327167,1755681039729,-7444.93446523,0.00020835,2]
[380327169,1755681039739,-500.0,0.00020946,2]
[380327172,1755681039760,-164.383721,0.00020951,2]
[380327173,1755681039771,-260.0,0.00020998,2]
[380327175,1755681039780,-300.0,0.00021017,20]
[380327177,1755681039790,-300.0,0.00021017,20]
[380327179,1755681039800,-300.0,0.00021017,20]
[380327181,1755681039809,-300.0,0.00021017,20]
[380327183,1755681039818,-300.0,0.00021017,20]
[380327185,1755681039828,-300.0,0.00021017,20]
[380327187,1755681039837,-300.0,0.00021017,20]
[380327189,1755681039847,-300.0,0.00021017,20]
[380327190,1755681039857,-300.0,0.00021017,20]
[380327192,1755681039867,-300.0,0.00021017,20]
[380327194,1755681039879,-300.0,0.00021017,20]
[380327196,1755681039890,-300.0,0.00021017,20]
[380327198,1755681039900,-300.0,0.00021017,20]
[380327200,1755681039911,-300.0,0.00021017,20]
[380327201,1755681039921,-300.0,0.00021017,20]
[380327202,1755681039930,-600.0,0.00021017,20]
[380327203,1755681039940,-845.84,0.00021095,2]
[380327204,1755681039950,-523.07,0.00021095,2]
[380327205,1755681039961,-737.83,0.00021095,2]
[380327206,1755681039970,-480.0,0.00021095,2]
[380327207,1755681039981,-480.0,0.00021095,2]
[380327208,1755681039991,-606.1,0.00021095,2]
[380327209,1755681040000,-243.89168695,0.00021154,2]
[380327210,1755681040010,-151.0,0.00021154,2]
[380327211,1755681040020,-151.0,0.00021154,2]
[380327213,1755681040030,-268.72796885,0.00021154,2]
[380327215,1755681040040,-203.82073721,0.00021154,2]
[380327216,1755681040051,-162.6918208,0.00021342,2]
[380327217,1755681040062,-581.0009137,0.00021342,2]
[380327218,1755681040072,-845.84,0.00021369,2]
[380327219,1755681040084,-523.07,0.00021369,2]
[380327220,1755681040094,-737.83,0.00021369,2]
[380327221,1755681040105,-480.0,0.00021369,2]
[380327222,1755681040116,-480.0,0.00021369,2]
[380327224,1755681040126,-2000.0,0.00021412,3]
[380327225,1755681040137,-187.67,0.00021451,3]
[380327226,1755681040148,-563.03,0.00021451,3]
[380327228,1755681040158,-4927.01943662,0.00021461,2]
[380327229,1755681040167,-161.7640123,0.00021461,2]
[380327230,1755681040176,-500.0,0.00021461,2]
[380327231,1755681040186,-180.47641172,0.00021461,2]
[380327232,1755681040195,-500.0,0.00021461,2]
[380327233,1755681040205,-380.82130462,0.00021461,2]
[380327234,1755681040217,-500.0,0.00021461,2]
[380327235,1755681040228,-500.0,0.00021461,2]
[380327236,1755681040238,-500.0,0.00021461,2]
[380327237,1755681040249,-500.0,0.00021461,2]
[380327238,1755681040260,-500.0,0.00021461,2]
[380327239,1755681040272,-500.0,0.00021461,2]
[380327240,1755681040282,-500.0,0.00021461,2]
[380327241,1755681040294,-500.0,0.00021461,2]
[380327242,1755681040306,-500.0,0.00021461,2]
[380327244,1755681040316,-500.0,0.00021461,2]
[380327245,1755681040326,-541.44255325,0.00021461,2]
[380327247,1755681040336,-500.0,0.00021461,2]
[380327248,1755681040347,-317.24846275,0.00021461,2]
[380327249,1755681040358,-500.0,0.00021461,2]
[380327250,1755681040370,-500.0,0.00021461,2]
[380327251,1755681040380,-500.0,0.00021461,2]
[380327252,1755681040391,-500.0,0.00021461,2]
[380327253,1755681040401,-500.0,0.00021461,2]
[380327254,1755681040411,-500.0,0.00021461,2]
[380327255,1755681040422,-500.0,0.00021461,2]
[380327256,1755681040433,-500.0,0.00021461,2]
[380327257,1755681040443,-500.0,0.00021461,2]
[380327258,1755681040453,-500.0,0.00021461,2]
[380327259,1755681040464,-500.0,0.00021461,2]
[380327260,1755681040474,-528.10142803,0.00021461,2]
[380327261,1755681040484,-500.0,0.00021461,2]
[380327262,1755681040494,-500.0,0.00021461,2]
[380327263,1755681040505,-500.0,0.00021461,2]
[380327264,1755681040515,-500.0,0.00021461,2]
[380327265,1755681040525,-500.0,0.00021461,2]
[380327266,1755681040538,-539.45807811,0.00021461,2]
[380327267,1755681040548,-500.0,0.00021461,2]
[380327268,1755681040558,-500.0,0.00021461,2]
[380327269,1755681040568,-500.0,0.00021461,2]
[380327270,1755681040578,-500.0,0.00021461,2]
[380327272,1755681040589,-500.0,0.00021461,2]
[380327274,1755681040599,-500.0,0.00021461,2]
[380327275,1755681040610,-500.0,0.00021461,2]
[380327277,1755681040620,-500.0,0.00021461,2]
[380327279,1755681040630,-500.0,0.00021461,2]
[380327281,1755681040640,-500.0,0.00021461,2]
[380327282,1755681040650,-500.0,0.00021461,2]
[380327283,1755681040661,-500.0,0.00021461,2]
[380327284,1755681040671,-500.0,0.00021461,2]
[380327285,1755681040682,-500.0,0.00021461,2]
[380327286,1755681040692,-500.0,0.00021461,2]
[380327287,1755681040702,-500.0,0.00021461,2]
[380327288,1755681040712,-500.0,0.00021461,2]
[380327289,1755681040722,-500.0,0.00021461,2]
[380327290,1755681040733,-500.0,0.00021461,2]
[380327291,1755681040744,-500.0,0.00021461,2]
[380327292,1755681040755,-500.0,0.00021461,2]
[380327293,1755681040765,-500.0,0.00021461,2]
[380327294,1755681040776,-500.0,0.00021461,2]
[380327295,1755681040787,-500.0,0.00021461,2]
[380327296,1755681040798,-387.08683647,0.00021461,2]
[380327297,1755681040808,-500.0,0.00021461,2]
[380327298,1755681040819,-500.0,0.00021461,2]
[380327299,1755681040829,-500.0,0.00021461,2]
[380327300,1755681040839,-500.0,0.00021461,2]
[380327301,1755681040850,-500.0,0.00021461,2]
[380327302,1755681040860,-500.0,0.00021461,2]
[380327303,1755681040870,-500.0,0.00021461,2]
[380327304,1755681040880,-500.0,0.00021461,2]
[380327305,1755681040889,-500.0,0.00021461,2]
[380327306,1755681040899,-500.0,0.00021461,2]
[380327307,1755681040907,-500.0,0.00021461,2]
[380327308,1755681040917,-500.0,0.00021461,2]
[380327309,1755681040926,-500.0,0.00021461,2]
[380327310,1755681040935,-500.0,0.00021461,2]
[380327311,1755681040944,-500.0,0.00021461,2]
[380327312,1755681040954,-500.0,0.00021461,2]
[380327313,1755681040963,-500.0,0.00021461,2]
[380327314,1755681040972,-500.0,0.00021461,2]
[380327315,1755681040981,-500.0,0.00021461,2]
[380327316,1755681040990,-487.79371797,0.00021461,2]
[380327317,1755681040999,-500.0,0.00021461,2]
[380327318,1755681041009,-500.0,0.00021461,2]
[380327319,1755681041018,-500.0,0.00021461,2]
[380327320,1755681041027,-500.0,0.00021461,2]
[380327321,1755681041037,-500.0,0.00021461,2]
[380327322,1755681041048,-500.0,0.00021461,2]
[380327323,1755681041058,-500.0,0.00021461,2]
[380327324,1755681041067,-500.0,0.00021461,2]
[380327325,1755681041076,-500.0,0.00021461,2]
[380327326,1755681041085,-500.0,0.00021461,2]
[380327327,1755681041094,-500.0,0.00021461,2]
[380327328,1755681041104,-500.0,0.00021461,2]
[380327329,1755681041114,-500.0,0.00021461,2]
[380327330,1755681041128,-500.0,0.00021461,2]
[380327331,1755681041139,-500.0,0.00021461,2]
[380327332,1755681041149,-500.0,0.00021461,2]
[380327333,1755681041158,-500.0,0.00021461,2]
[380327334,1755681041168,-500.0,0.00021461,2]
[380327335,1755681041177,-500.0,0.00021461,2]
[380327336,1755681041186,-500.0,0.00021461,2]
[380327337,1755681041195,-250.0,0.00021461,2]
[380327338,1755681041205,-12500.0,0.00021462,3]
[380327339,1755681041215,-375.94359665,0.00021462,3]
[380327340,1755681041227,-160.0,0.00021462,3]
[380327341,1755681041236,-528.77847288,0.00021462,3]
[380327342,1755681041246,-417.15472785,0.00021462,3]
[380327343,1755681041255,-215.82729805,0.00021462,3]
[380327344,1755681041266,-500.0,0.00021494,2]
[380327345,1755681041275,-360.0,0.00021546,2]
[380327346,1755681041284,-500.0,0.00021573,2]
[380327347,1755681041295,-500.0,0.00021573,2]
[380327348,1755681041305,-500.0,0.00021573,2]
[380327349,1755681041314,-1707.75790722,0.00021577,2]
[380327350,1755681041324,-4000.0,0.00021589,3]
[380327351,1755681041334,-845.84,0.00021643,2]
[380327352,1755681041343,-523.07,0.00021643,2]
[380327353,1755681041352,-737.83,0.00021643,2]
[380327354,1755681041362,-480.0,0.00021643,2]
[380327355,1755681041371,-480.0,0.00021643,2]
[380327356,1755681041381,-634.37650656,0.00021649,2]
[380327357,1755681041390,-1377.40080039,0.00021649,2]
[380327358,1755681041399,-1377.40080039,0.00021649,2]
[380327359,1755681041409,-1377.40080039,0.00021649,2]
[380327360,1755681041419,-1377.40080039,0.00021649,2]
[380327361,1755681041428,-1377.40080039,0.00021649,2]
[380327362,1755681041438,-1377.40080039,0.00021649,2]
[380327363,1755681041448,-1377.40080039,0.00021649,2]
[380327364,1755681041459,-1377.40080039,0.00021649,2]
[380327365,1755681041469,-1377.40080039,0.00021649,2]
[380327366,1755681041479,-1377.40080039,0.00021649,2]
[380327367,1755681041488,-1377.40080039,0.00021649,2]
[380327368,1755681041498,-1377.40080039,0.00021649,2]
[380327369,1755681041508,-1377.40080039,0.00021649,2]
[380327370,1755681041518,-1377.40080039,0.00021649,2]
[380327371,1755681041528,-1377.40080039,0.00021649,2]
[380327372,1755681041537,-1377.40080039,0.00021649,2]
[380327373,1755681041547,-1377.40080039,0.00021649,2]
[380327374,1755681041557,-1377.40080039,0.00021649,2]
[380327375,1755681041567,-1377.40080039,0.00021649,2]
[380327376,1755681041576,-1377.40080039,0.00021649,2]
[380327377,1755681041586,-1377.40080039,0.00021649,2]
[380327378,1755681041597,-1377.40080039,0.00021649,2]
[380327379,1755681041606,-1469.2275204,0.00021649,2]
[380327380,1755681041616,-1469.2275204,0.00021649,2]
[380327381,1755681041624,-1469.2275204,0.00021649,2]
[380327382,1755681041634,-1469.2275204,0.00021649,2]
[380327383,1755681041643,-1469.2275204,0.00021649,2]
[380327384,1755681041652,-1469.2275204,0.00021649,2]
[380327385,1755681041661,-1469.2275204,0.00021649,2]
[380327386,1755681041670,-1469.2275204,0.00021649,2]
[380327387,1755681041679,-1469.2275204,0.00021649,2]
[380327388,1755681041688,-370000.0,0.0002165,2]
[380327389,1755681041697,-9333.63486434,0.0002165,2]
[380327390,1755681041707,-66772.0705538,0.0002175,2]
[380327391,1755681041716,-6000.0,0.00021762,3]
[380327392,1755681041725,-7444.93446523,0.00021771,2]
[380327393,1755681041734,-500.24481605,0.00021773,2]
[380327394,1755681041743,-845.84,0.00021917,2]
[380327395,1755681041752,-523.07,0.00021917,2]
[380327396,1755681041761,-737.83,0.00021917,2]
[380327397,1755681041770,-480.0,0.00021917,2]
[380327398,1755681041779,-480.0,0.00021917,2]
[380327399,1755681041789,-1329.9697365,0.00021918,7]
[380327400,1755681041798,-6000.0,0.00021962,3]
[380327401,1755681041807,-20686.23,0.00022,7]
[380327402,1755681041816,-6153.46,0.00022,7]
[380327403,1755681041825,-1524.54,0.00022,7]
[380327404,1755681041835,-375.94359665,0.00022,7]
[380327405,1755681041844,-160.0,0.00022,7]
[380327406,1755681041854,-34377.8,0.00022,2]
[380327407,1755681041867,-179.0,0.00022,2]
[380327408,1755681041877,-528.77847288,0.00022,7]
[380327409,1755681041886,-417.15472785,0.00022,7]
[380327410,1755681041895,-209.0,0.00022,2]
[380327411,1755681041904,-215.82729805,0.00022,7]
[380327412,1755681041913,-1000.0,0.00022012,3]
[380327413,1755681041922,-460.0,0.00022094,2]
[380327414,1755681041931,-210.28,0.000221,2]
[380327415,1755681041940,-1000.0,0.00022121,2]
[380327416,1755681041950,-845.84,0.00022191,2]
[380327417,1755681041959,-523.07,0.00022191,2]
[380327418,1755681041968,-737.83,0.00022191,2]
[380327419,1755681041978,-480.0,0.00022191,2]
[380327420,1755681042099,-480.0,0.00022191,2]
[380327421,1755681042111,-209.0,0.00022192,7]
[380327422,1755681042121,-528.77847288,0.00022232,2]
[380327423,1755681042131,-160.0,0.00022232,2]
[380327424,1755681042141,-844.05985274,0.00022232,2]
[380327425,1755681042150,-160.0,0.00022232,2]
[380327426,1755681042159,-215.82729805,0.00022232,2]
[380327427,1755681042169,-216.9170744,0.00022232,2]
[380327428,1755681042179,-160.0,0.00022232,2]
[380327429,1755681042188,-375.94359665,0.00022232,2]
[380327430,1755681042198,-160.0,0.00022232,2]
[380327431,1755681042207,-232.24568399,0.00022232,2]
[380327432,1755681042217,-160.0,0.00022232,2]
[380327433,1755681042228,-160.0,0.00022232,2]
[380327434,1755681042238,-417.15472785,0.00022232,2]
[380327435,1755681042247,-160.0,0.00022232,2]
[380327436,1755681042256,-160.0,0.00022232,2]
[380327437,1755681042266,-12500.0,0.00022232,2]
[380327438,1755681042276,-158.7577131,0.00022287,2]
[380327439,1755681042287,-151.0,0.00022287,2]
[380327440,1755681042296,-151.0,0.00022287,2]
[380327441,1755681042311,-245.5775819,0.00022287,2]
[380327442,1755681042322,-151.55192868,0.00022287,2]
[380327443,1755681042333,-151.0,0.00022287,2]
[380327444,1755681042342,-151.0,0.00022287,2]
[380327445,1755681042351,-151.0,0.00022287,2]
[380327446,1755681042360,-151.0,0.00022287,2]
[380327447,1755681042369,-151.25308997,0.00022287,2]
[380327448,1755681042378,-151.31325789,0.00022287,2]
[380327449,1755681042387,-151.0049699,0.00022287,2]
[380327450,1755681042397,-151.13771166,0.00022287,2]
[380327451,1755681042405,-491.0,0.00022287,2]
[380327452,1755681042414,-1707.7579072,0.0002232,2]
[380327453,1755681042425,-500.0,0.00022367,2]
[380327454,1755681042436,-845.84,0.00022465,2]
[380327455,1755681042446,-523.07,0.00022465,2]
[380327456,1755681042456,-737.83,0.00022465,2]
[380327457,1755681042465,-480.0,0.00022465,2]
[380327458,1755681042475,-480.0,0.00022465,2]
[380327459,1755681042484,-152.15311967,0.00022523,2]
[380327460,1755681042496,-151.0,0.00022561,2]
[380327461,1755681042506,-151.0,0.00022561,2]
[380327462,1755681042516,-257.13063666,0.00022561,2]
[380327463,1755681042526,-151.89224758,0.00022561,2]
[380327464,1755681042536,-491.0,0.00022561,2]
[380327465,1755681042545,-560.0,0.00022642,2]
[380327466,1755681042555,-500.0,0.00022645,2]
[380327467,1755681042564,-526.94486111,0.00022645,2]
[380327468,1755681042573,-587.0,0.00022657,2]
[380327469,1755681042582,-2351.0,0.00022658,2]
[380327470,1755681042591,-1500.0,0.00022668,2]
[380327471,1755681042601,-234.0,0.00022685,2]
[380327472,1755681042610,-7444.93446523,0.00022706,2]
[380327473,1755681042619,-500.0,0.00022723,2]
[380327474,1755681042628,-845.84,0.00022739,2]
[380327475,1755681042637,-523.07,0.00022739,2]
[380327476,1755681042647,-737.83,0.00022739,2]
[380327477,1755681042656,-480.0,0.00022739,2]
[380327478,1755681042666,-480.0,0.00022739,2]
[380327479,1755681042675,-375.34,0.00022821,3]
[380327480,1755681042684,-491.0,0.00022835,2]
[380327481,1755681042693,-1000.0,0.00022915,2]
[380327482,1755681042703,-3600.30639534,0.00023,2]
[380327483,1755681042712,-160.0,0.00023,3]
[380327484,1755681042721,-160.0,0.00023,2]
[380327485,1755681042730,-232.24568399,0.00023,3]
[380327486,1755681042740,-160.0,0.00023,3]
[380327487,1755681042749,-844.05985274,0.00023,3]
[380327488,1755681042758,-160.0,0.00023,3]
[380327489,1755681042767,-160.0,0.00023,3]
[380327490,1755681042777,-216.9170744,0.00023,3]
[380327491,1755681042786,-160.0,0.00023,3]
[380327492,1755681042795,-845.84,0.00023013,2]
[380327493,1755681042805,-523.07,0.00023013,2]
[380327494,1755681042815,-737.83,0.00023013,2]
[380327495,1755681042824,-480.0,0.00023013,2]
[380327496,1755681042833,-480.0,0.00023013,2]
[380327497,1755681042841,-209.0,0.00023014,7]
[380327498,1755681042851,-2947.06762545,0.00023054,2]
[380327499,1755681042860,-1707.7579072,0.00023064,2]
[380327500,1755681042869,-491.0,0.00023109,2]
[380327501,1755681042879,-720.0,0.00023118,20]
[380327502,1755681042887,-477.0,0.00023134,2]
[380327503,1755681042902,-660.0,0.0002319,2]
[380327504,1755681042911,-266.90847773,0.00023193,2]
[380327505,1755681042921,-477.0,0.00023196,2]
[380327506,1755681042929,-6153.46,0.000232,7]
[380327508,1755681042939,-1524.54,0.000232,7]
[380327509,1755681042947,-5437.37390766,0.000232,2]
[380327526,1755681044376,-2975.87,0.00021639,10]
[380327527,1755681044385,-16210.95238131,0.000232,2]
[380327535,1755681046511,-480.0,0.00019178,2]
[380327536,1755681046522,-480.0,0.00019178,2]
[380327537,1755681046532,-12729.47371103,0.000232,2]
[380327538,1755681046541,-835.44292313,0.00023216,2]
[380327539,1755681046550,-9333.63486434,0.00023241,2]
[380327540,1755681046560,-1001.69273734,0.00023271,2]
[380327541,1755681046569,-845.84,0.00023287,2]
[380327542,1755681046578,-523.07,0.00023287,2]
[380327543,1755681046588,-737.83,0.00023287,2]
[380327544,1755681046598,-480.0,0.00023287,2]
[380327545,1755681046608,-180.68,0.00023287,2]
[380327546,1755681046617,-211.793785,0.00023288,2]
[380327547,1755681046626,-20686.23,0.000233,7]
[380327548,1755681046635,-160.0,0.000233,7]
[380327549,1755681046644,-375.94359665,0.000233,7]
[380327550,1755681046653,-528.77847288,0.000233,7]
[380327551,1755681046662,-417.15472785,0.000233,7]
[380327552,1755681046672,-215.82729805,0.000233,7]
[380327553,1755681046681,-491.0,0.00023383,2]
[380327554,1755681046690,-214.0,0.00023404,2]
[380327555,1755681046699,-348.80746825,0.00023447,2]
[380327556,1755681046708,-845.84,0.00023561,2]
[380327557,1755681046720,-523.07,0.00023561,2]
[380327558,1755681046729,-737.83,0.00023561,2]
[380327559,1755681046738,-480.0,0.00023561,2]
[380327560,1755681046747,-214.0,0.00023578,2]
[380327561,1755681046757,-214.0,0.00023597,2]
[380327562,1755681046766,-7444.93446523,0.00023642,2]
[380327563,1755681046775,-491.0,0.00023657,2]
[380327564,1755681046784,-214.0,0.00023686,2]
[380327565,1755681046793,-500.0,0.0002371,2]
[380327566,1755681046802,-760.0,0.00023738,2]
[380327567,1755681046811,-203.97,0.000238,2]
[380327568,1755681046820,-1707.7579072,0.00023807,2]
[380327569,1755681046828,-845.84,0.00023835,2]
[380327570,1755681046838,-523.07,0.00023835,2]
[380327571,1755681046847,-737.83,0.00023835,2]
[380327572,1755681046856,-480.0,0.00023835,2]
[380327573,1755681046865,-408.0,0.00023842,2]
[380327574,1755681046874,-425.227,0.00023842,2]
[380327575,1755681046883,-179.0,0.00023843,2]
[380327576,1755681046891,-179.0,0.00023847,2]
[380327577,1755681046901,-2404.56957345,0.00023879,2]
[380327578,1755681046911,-413.18,0.000239,4]
[380327579,1755681046920,-10057.91,0.000239,4]
[380327580,1755681046929,-179.0,0.00023907,2]
[380327581,1755681046938,-491.0,0.00023931,2]
[380327582,1755681046948,-179.0,0.00023943,2]
[380327583,1755681046957,-1702.09573674,0.00024,2]
[380327584,1755681046966,-456.19665001,0.00024,2]
[380327585,1755681046975,-157.34,0.00024,14]
[380327586,1755681046984,-200.0,0.00024,2]
[380327587,1755681046994,-182.63212056,0.00024,7]
[380327588,1755681047003,-151.0,0.00024,9]
[380327589,1755681047012,-160.0,0.00024,7]
[380327590,1755681047022,-12500.0,0.00024,7]
[380327591,1755681047031,-232.24568399,0.00024,7]
[380327592,1755681047040,-160.0,0.00024,7]
[380327593,1755681047049,-844.05985274,0.00024,7]
[380327594,1755681047058,-160.0,0.00024,7]
[380327595,1755681047068,-160.0,0.00024,7]
[380327596,1755681047077,-216.9170744,0.00024,7]
[380327597,1755681047086,-160.0,0.00024,7]
[380327598,1755681047095,-215.82729805,0.00024,3]
[380327599,1755681047104,-214.0,0.00024011,2]
[380327600,1755681047114,-535.0,0.00024047,2]
[380327601,1755681047123,-168.0,0.00024053,2]
[380327602,1755681047132,-5000.0,0.00024054,2]
[380327603,1755681047141,-477.0,0.00024075,2]
[380327604,1755681047150,-845.84,0.00024109,2]
[380327605,1755681047160,-523.07,0.00024109,2]
[380327606,1755681047278,-737.83,0.00024109,2]
[380327607,1755681047290,-480.0,0.00024109,2]
[380327608,1755681047301,-215.0,0.00024164,7]
[380327609,1755681047312,-491.0,0.00024205,2]
[380327610,1755681047322,-200.0,0.0002422,9]
[380327611,1755681047331,-150.0,0.00024241,2]
[380327612,1755681047341,-345.32524566,0.00024258,2]
[380327613,1755681047352,-860.0,0.00024286,2]
[380327614,1755681047362,-151.0,0.000243,5]
[380327615,1755681047376,-214.0,0.00024364,2]
[380327616,1755681047385,-845.84,0.00024383,2]
[380327617,1755681047395,-523.07,0.00024383,2]
[380327618,1755681047404,-737.83,0.00024383,2]
[380327619,1755681047413,-480.0,0.00024383,2]
[380327620,1755681047423,-151.0,0.000244,8]
[380327621,1755681047432,-6153.46,0.000244,7]
[380327622,1755681047441,-1524.54,0.000244,7]
[380327623,1755681047450,-34377.8,0.000244,2]
[380327624,1755681047460,-289.974,0.00024441,2]
[380327625,1755681047469,-150.352,0.00024441,2]
[380327626,1755681047478,-195.869,0.00024441,2]
[380327627,1755681047487,-177.014,0.00024441,2]
[380327628,1755681047496,-974.87,0.00024441,2]
[380327629,1755681047505,-639.856,0.00024441,2]
[380327630,1755681047514,-2155.912,0.00024441,2]
[380327631,1755681047523,-214.0,0.00024451,2]
[380327632,1755681047533,-507.31104725,0.00024473,2]
[380327633,1755681047542,-491.0,0.00024479,2]
[380327634,1755681047552,-12120.09,0.000245,7]
[380327635,1755681047561,-214.0,0.00024504,2]
[380327636,1755681047570,-1707.7579072,0.0002455,2]
[380327637,1755681047579,-160.0,0.0002455,3]
[380327638,1755681047588,-24061.71304682,0.0002455,3]
[380327639,1755681047598,-7444.93446523,0.00024577,2]
[380327640,1755681047608,-20686.23,0.000246,7]
[380327641,1755681047617,-232.24568399,0.000246,3]
[380327642,1755681047626,-160.0,0.000246,3]
[380327643,1755681047635,-375.94359665,0.000246,3]
[380327644,1755681047644,-160.0,0.000246,7]
[380327645,1755681047653,-375.94359665,0.000246,7]
[380327646,1755681047662,-844.05985274,0.000246,3]
[380327647,1755681047672,-844.05985274,0.000246,7]
[380327648,1755681047681,-528.77847288,0.000246,3]
[380327649,1755681047690,-216.9170744,0.000246,3]
[380327650,1755681047699,-160.0,0.000246,3]
[380327651,1755681047708,-417.15472785,0.000246,3]
[380327652,1755681047717,-417.15472785,0.000246,7]
[380327653,1755681047726,-215.82729805,0.000246,3]
[380327654,1755681047735,-215.82729805,0.000246,7]
[380327655,1755681047745,-396298.56858745,0.0002465,2]
[380327656,1755681047755,-151.993823,0.0002465,7]
[380327657,1755681047765,-227.302118,0.0002465,7]
[380327658,1755681047774,-152.754106,0.0002465,7]
[380327659,1755681047783,-151.0,0.0002465,7]
[380327660,1755681047792,-151.0,0.0002465,7]
[380327661,1755681047802,-160.879674,0.0002465,7]
[380327662,1755681047811,-151.0,0.0002465,7]
[380327663,1755681047821,-153.300585,0.0002465,7]
[380327664,1755681047831,-153.579558,0.0002465,7]
[380327665,1755681047840,-151.0,0.0002465,7]
[380327666,1755681047849,-151.0,0.0002465,7]
[380327667,1755681047859,-151.0,0.0002465,7]
[380327668,1755681047869,-151.0,0.0002465,7]
[380327669,1755681047878,-151.0,0.0002465,7]
[380327670,1755681047887,-151.0,0.0002465,7]
[380327671,1755681047896,-151.0,0.0002465,7]
[380327672,1755681047905,-151.0,0.0002465,7]
[380327673,1755681047914,-151.379794,0.0002465,7]
[380327674,1755681047923,-151.0,0.0002465,7]
[380327675,1755681047932,-151.0,0.0002465,7]
[380327676,1755681047941,-151.0,0.0002465,7]
[380327677,1755681047951,-151.0,0.0002465,7]
[380327678,1755681047960,-151.0,0.0002465,7]
[380327679,1755681047969,-355.480965,0.0002465,7]
[380327680,1755681047979,-355.480965,0.0002465,7]
[380327681,1755681047989,-355.480965,0.0002465,7]
[380327682,1755681047998,-355.480965,0.0002465,7]
[380327683,1755681048008,-151.0,0.0002465,7]
[380327684,1755681048017,-151.0,0.0002465,7]
[380327685,1755681048026,-151.0,0.0002465,7]
[380327686,1755681048035,-151.0,0.0002465,7]
[380327687,1755681048045,-151.0,0.0002465,7]
[380327688,1755681048054,-159.20595,0.0002465,7]
[380327689,1755681048063,-151.0,0.0002465,7]